bitfinex-derivatives/quotes_BTCF0:USTF0_20250108
["timestamp","ask_amount","ask_price","bid_price","bid_amount"]
[1736340148935,0.11780181,95167.0,95165.0,0.413358]
[1736340149122,0.18866526,95173.0,95171.0,0.052555]
[1736340149422,0.18866526,95173.0,95172.0,0.068]
[1736340150030,0.052553,95175.0,95172.0,0.120554]
[1736340150226,0.052553,95175.0,95174.0,0.3608]
[1736340151623,0.055553,95175.0,95174.0,0.3618]
[1736340152435,0.055553,95175.0,95174.0,0.001]
[1736340153322,0.003,95175.0,95174.0,0.001]
[1736340153520,0.003,95175.0,95174.0,0.3618]
[1736340153725,0.003,95175.0,95174.0,0.001]
[1736340153934,0.055553,95175.0,95174.0,0.001]
[1736340154229,0.005,95175.0,95174.0,0.001]
[1736340155627,0.005,95175.0,95174.0,0.0713]
[1736340156526,0.005,95175.0,95174.0,0.11965609]
[1736340157833,0.005,95175.0,95174.0,0.13763457]
[1736340158533,0.005,95175.0,95174.0,0.08927848]
[1736340160129,0.005,95175.0,95174.0,0.0713]
[1736340161939,0.16208929,95175.0,95174.0,0.0713]
[1736340162945,0.005,95175.0,95174.0,0.0713]
[1736340163329,0.15708929,95176.0,95175.0,0.052553]
[1736340164134,0.15708929,95176.0,95175.0,0.352553]
[1736340164336,0.1,95180.0,95175.0,0.10083712]
[1736340164537,0.1,95180.0,95179.0,0.41335]
[1736340165937,0.1,95180.0,95179.0,0.41835]
[1736340167044,0.1,95180.0,95179.0,0.42235]
[1736340167446,0.1,95180.0,95179.0,0.41735]
[1736340167636,0.1,95180.0,95179.0,0.42235]
[1736340168242,0.1,95180.0,95179.0,0.41735]
[1736340168439,0.1,95180.0,95179.0,0.42235]
[1736340168638,0.2255205,95180.0,95179.0,0.42235]
[1736340169439,0.1027865,95180.0,95179.0,0.42235]
[1736340169943,0.15708929,95185.0,95184.0,0.052548]
[1736340170246,0.15708929,95185.0,95184.0,0.413348]
[1736340170843,0.15708929,95186.0,95184.0,0.413348]
[1736340172033,0.15708929,95186.0,95184.0,0.416348]
[1736340172238,0.15708929,95185.0,95184.0,0.416348]
[1736340173458,0.05108367,95185.0,95184.0,0.3658]
[1736340173749,0.05108367,95185.0,95184.0,0.417348]
[1736340174142,0.05108367,95185.0,95184.0,0.43340146]
[1736340174348,0.23959082,95188.0,95184.0,0.38285346]
[1736340174652,0.23959082,95188.0,95187.0,0.052546]
[1736340175443,0.23959082,95188.0,95184.0,0.3638]
[1736340175444,0.052547,95185.0,95184.0,0.416346]
[1736340175756,0.122646,95187.0,95186.0,0.052547]
[1736340177149,0.26602778,95187.0,95186.0,0.052547]
[1736340177547,0.26902778,95187.0,95186.0,0.052547]
[1736340177944,0.21648178,95187.0,95186.0,0.052547]
[1736340178254,0.21648178,95187.0,95186.0,0.053547]
[1736340178644,0.32366659,95187.0,95186.0,0.053547]
[1736340179740,0.32166659,95187.0,95186.0,0.052547]
[1736340179942,0.32366659,95187.0,95186.0,0.053547]
[1736340180147,0.32266659,95187.0,95186.0,0.053547]
[1736340180354,0.32366659,95187.0,95186.0,0.053547]
[1736340180971,0.32266659,95187.0,95186.0,0.052547]
[1736340181151,0.32366659,95187.0,95186.0,0.052547]
[1736340181460,0.32166659,95187.0,95186.0,0.052547]
[1736340181647,0.32366659,95187.0,95177.0,0.3608]
[1736340181846,0.32366659,95187.0,95183.0,0.052548]
[1736340182655,0.14338178,95186.0,95183.0,0.052548]
[1736340182955,0.19592878,95186.0,95183.0,0.052548]
[1736340183559,0.14338178,95186.0,95177.0,0.3608]
[1736340183757,0.052548,95185.0,95177.0,0.3608]
[1736340183952,0.052548,95185.0,95179.0,0.05255]
[1736340184151,0.3032728,95185.0,95180.0,0.05255]
[1736340184848,0.3062728,95185.0,95180.0,0.05255]
[1736340185454,0.3062728,95185.0,95177.0,0.3608]
[1736340185455,0.2507248,95184.0,95181.0,0.02243658]
[1736340185658,0.3032728,95184.0,95181.0,0.02243658]
[1736340185853,0.0774,95183.0,95181.0,0.02243658]
[1736340186545,0.0774,95183.0,95182.0,0.052549]
[1736340187346,0.3281248,95183.0,95182.0,0.052549]
[1736340187751,0.3291248,95183.0,95182.0,0.052549]
[1736340188052,0.3321248,95183.0,95182.0,0.052549]
[1736340188467,0.3311248,95183.0,95182.0,0.052549]
[1736340188665,0.3321248,95183.0,95182.0,0.052549]
[1736340189956,0.3321248,95183.0,95177.0,0.3608]
[1736340190153,0.052549,95181.0,95177.0,0.413351]
[1736340191151,0.3321248,95183.0,95169.0,0.47092]
[1736340191358,0.10605574,95179.0,95168.0,0.3608]
[1736340191560,0.052556,95169.0,95168.0,0.3608]
[1736340192962,0.30222443,95169.0,95168.0,0.3608]
[1736340193563,0.30522443,95169.0,95168.0,0.3608]
[1736340194554,0.32451562,95169.0,95168.0,0.3608]
[1736340200468,0.21822897,95169.0,95168.0,0.3608]
[1736340200969,0.14738178,95169.0,95168.0,0.413357]
[1736340201271,0.03138178,95169.0,95168.0,0.413357]
[1736340202663,0.02838178,95169.0,95168.0,0.413357]
[1736340202864,0.02738178,95169.0,95168.0,0.413357]
[1736340203077,0.02738178,95169.0,95168.0,0.414357]
[1736340203371,0.02738178,95169.0,95168.0,0.538057]
[1736340203771,0.02738178,95169.0,95168.0,0.537057]
[1736340203969,0.219698,95176.0,95175.0,0.052553]
[1736340204174,0.219698,95176.0,95175.0,0.175253]
[1736340205772,0.18862562,95180.0,95175.0,0.1227]
[1736340205964,0.18862562,95180.0,95179.0,0.05255]
[1736340206966,0.18862562,95180.0,95179.0,0.05455]
[1736340207168,0.052547,95186.0,95184.0,0.052547]
[1736340207481,0.052547,95186.0,95185.0,0.3608]
[1736340209462,0.055547,95186.0,95185.0,0.3608]
[1736340211577,0.003,95186.0,95185.0,0.3608]
[1736340212681,0.10553242,95186.0,95185.0,0.3608]
[1736340213669,0.003,95186.0,95185.0,0.3608]
[1736340215781,0.003,95186.0,95185.0,0.3618]
[1736340216183,0.052546,95187.0,95185.0,0.3618]
[1736340216383,0.002,95186.0,95185.0,0.3618]
[1736340216576,0.09024925,95186.0,95185.0,0.3618]
[1736340217074,0.09024925,95186.0,95185.0,0.3608]
[1736340217383,0.08824925,95186.0,95185.0,0.3618]
[1736340217583,0.09124925,95186.0,95185.0,0.3618]
[1736340217783,0.14234072,95186.0,95185.0,0.3618]
[1736340219184,0.14234072,95186.0,95185.0,0.3608]
[1736340219888,0.14234072,95186.0,95185.0,0.413347]
[1736340222986,0.13934072,95186.0,95185.0,0.413347]
[1736340223288,0.14034072,95186.0,95185.0,0.413347]
[1736340223680,0.14034072,95186.0,95185.0,0.414347]
[1736340225486,0.13934072,95186.0,95185.0,0.414347]
[1736340225688,0.13934072,95186.0,95185.0,0.413347]
[1736340225882,0.13934072,95186.0,95185.0,0.415347]
[1736340226081,0.05209147,95186.0,95185.0,0.415347]
[1736340226491,0.05109147,95186.0,95185.0,0.413347]
[1736340226681,0.05409147,95186.0,95185.0,0.413347]
[1736340227192,0.05309147,95186.0,95185.0,0.413347]
[1736340227381,0.14134072,95186.0,95185.0,0.413347]
[1736340228694,0.14134072,95186.0,95185.0,0.414347]
[1736340229591,0.14234072,95186.0,95185.0,0.413347]
[1736340231179,0.29761266,95186.0,95185.0,0.413347]
[1736340231897,0.29461266,95186.0,95185.0,0.413347]
[1736340232194,0.29761266,95186.0,95185.0,0.413347]
[1736340233191,0.24506566,95186.0,95185.0,0.413347]
[1736340235686,0.24206566,95186.0,95185.0,0.413347]
[1736340235892,0.24506566,95186.0,95185.0,0.413347]
[1736340236292,0.24206566,95186.0,95185.0,0.413347]
[1736340236594,0.24506566,95186.0,95185.0,0.413347]
[1736340238895,0.29761266,95186.0,95185.0,0.3608]
[1736340239103,0.29761266,95186.0,95174.0,0.3608]
[1736340239104,0.052551,95178.0,95175.0,0.052553]
[1736340239291,0.1445,95177.0,95176.0,0.052552]
[1736340239902,0.38656566,95177.0,95176.0,0.052552]
[1736340240094,0.052553,95175.0,95172.0,0.47088]
[1736340240402,0.38856566,95177.0,95172.0,0.47088]
[1736340240595,0.052554,95173.0,95172.0,0.47088]
[1736340242797,0.055554,95173.0,95172.0,0.47088]
[1736340242997,0.29761966,95173.0,95172.0,0.47088]
[1736340243291,0.29461966,95173.0,95172.0,0.47088]
[1736340243490,0.29761966,95173.0,95172.0,0.47088]
[1736340243691,0.29861966,95173.0,95172.0,0.47088]
[1736340244406,0.60686566,95173.0,95160.0,0.3608]
[1736340244602,0.05256,95161.0,95160.0,0.3608]
[1736340245493,0.29462566,95161.0,95160.0,0.3608]
[1736340245697,0.29662566,95161.0,95160.0,0.3608]
[1736340246600,0.41399132,95161.0,95160.0,0.3608]
[1736340246997,0.41399132,95161.0,95160.0,0.3618]
[1736340247801,0.40863798,95161.0,95160.0,0.3618]
[1736340247995,0.32038873,95161.0,95160.0,0.3618]
[1736340248998,0.40863798,95161.0,95160.0,0.3618]
[1736340249708,0.42882508,95161.0,95160.0,0.3618]
[1736340252700,0.20873448,95161.0,95160.0,0.3618]
[1736340253812,0.31140922,95161.0,95160.0,0.3618]
[1736340254208,0.31140922,95161.0,95160.0,0.001]
[1736340256510,0.20873448,95161.0,95160.0,0.001]
[1736340257712,0.12048523,95161.0,95160.0,0.001]
[1736340258710,0.3114751,95161.0,95160.0,0.001]
[1736340264008,0.20873448,95161.0,95160.0,0.001]
[1736340265218,0.12048523,95161.0,95160.0,0.001]
[1736340266516,0.20873448,95161.0,95160.0,0.001]
[1736340269018,0.31188819,95161.0,95160.0,0.001]
[1736340269610,0.26468153,95161.0,95160.0,0.001]
[1736340269819,0.24449443,95161.0,95160.0,0.414361]
[1736340270020,0.11746199,95165.0,95164.0,0.052559]
[1736340270218,0.31461185,95169.0,95160.0,0.414361]
[1736340270417,0.31461185,95169.0,95168.0,0.413357]
[1736340270719,0.34607304,95180.0,95179.0,0.052551]
[1736340270922,0.34607304,95180.0,95179.0,0.413351]
[1736340271126,0.28427304,95180.0,95179.0,0.46165882]
[1736340271322,0.28427304,95180.0,95179.0,0.76165882]
[1736340271710,0.22035379,95191.0,95179.0,0.70910782]
[1736340272022,0.22035379,95191.0,95190.0,0.413344]
[1736340273220,0.001,95191.0,95190.0,0.414344]
[1736340274227,0.006,95191.0,95190.0,0.414344]
[1736340274923,0.001,95191.0,95190.0,0.415344]
[1736340275519,0.15703699,95196.0,95195.0,0.052542]
[1736340275720,0.15703699,95196.0,95195.0,0.413342]
[1736340276725,0.15803699,95196.0,95195.0,0.413342]
[1736340276926,0.001,95196.0,95195.0,0.413342]
[1736340277426,0.169,95196.0,95195.0,0.413342]
[1736340280220,0.29425304,95196.0,95195.0,0.413342]
[1736340281432,0.169,95196.0,95195.0,0.413342]
[1736340282732,0.168,95196.0,95195.0,0.413342]
[1736340283031,0.169,95196.0,95195.0,0.413342]
[1736340283331,0.168,95196.0,95195.0,0.413342]
[1736340283531,0.169,95196.0,95195.0,0.413342]
[1736340285321,0.169,95196.0,95195.0,0.2281]
[1736340286132,0.169,95196.0,95193.0,0.052543]
[1736340286323,0.052542,95195.0,95193.0,0.052543]
[1736340289037,0.15703699,95194.0,95193.0,0.052543]
[1736340290036,0.053542,95195.0,95193.0,0.052543]
[1736340290335,0.001,95194.0,95193.0,0.052543]
[1736340293546,0.71724438,95196.0,95181.0,0.3608]
[1736340293737,0.001,95194.0,95181.0,0.3608]
[1736340293937,0.001,95194.0,95193.0,0.052543]
[1736340294434,0.18944438,95194.0,95193.0,0.052543]
[1736340295032,0.18944438,95194.0,95181.0,0.3608]
[1736340295338,0.052545,95189.0,95187.0,0.052546]
[1736340295735,0.001,95194.0,95188.0,0.052545]
[1736340295936,0.052542,95195.0,95188.0,0.052545]
[1736340296237,0.001,95194.0,95177.0,0.471]
[1736340296434,0.06957935,95190.0,95189.0,0.052544]
[1736340296636,0.07108587,95195.0,95189.0,0.052544]
[1736340297232,0.1420262,95195.0,95189.0,0.052544]
[1736340298140,0.12348233,95195.0,95189.0,0.052544]
[1736340298346,0.06994033,95194.0,95189.0,0.052544]
[1736340299643,0.07094033,95194.0,95189.0,0.052544]
[1736340299845,0.15363024,95194.0,95177.0,0.471]
[1736340300047,0.15363024,95194.0,95193.0,0.052543]
[1736340300647,0.15363024,95194.0,95193.0,0.413343]
[1736340302047,0.15263024,95194.0,95193.0,0.413343]
[1736340302246,0.07094033,95194.0,95193.0,0.413343]
[1736340303046,0.07194033,95194.0,95193.0,0.413343]
[1736340303546,0.002,95194.0,95193.0,0.413343]
[1736340307050,0.25936498,95200.0,95199.0,0.052539]
[1736340307247,0.25820498,95200.0,95199.0,0.46169385]
[1736340308540,0.25920498,95200.0,95199.0,0.414339]
[1736340308849,0.26120498,95200.0,95199.0,0.414339]
[1736340309151,0.13641398,95200.0,95199.0,0.414339]
[1736340309353,9.4e-07,95204.0,95203.0,0.052537]
[1736340309650,0.18870475,95215.0,95214.0,0.052531]
[1736340309853,0.18870475,95215.0,95214.0,0.884091]
[1736340310149,0.18870475,95215.0,95214.0,0.9323938]
[1736340310538,0.18870475,95215.0,95214.0,0.884091]
[1736340310947,0.1,95220.0,95218.0,0.052529]
[1736340310948,0.1727,95219.0,95218.0,0.052529]
[1736340312049,0.27560475,95219.0,95218.0,0.052529]
[1736340313252,0.0869,95219.0,95218.0,0.052529]
[1736340313440,0.0899,95219.0,95218.0,0.052529]
[1736340314549,0.052537,95204.0,95200.0,0.052538]
[1736340314848,0.05254,95198.0,95195.0,0.052542]
[1736340315045,0.0841,95197.0,95195.0,0.052542]
[1736340315246,0.1655,95197.0,95191.0,0.47072]
[1736340315451,0.052543,95192.0,95191.0,0.47072]
[1736340315646,0.052549,95183.0,95172.0,0.2206]
[1736340315846,0.052552,95178.0,95174.0,0.052553]
[1736340316742,0.3608,95185.0,95174.0,0.052553]
[1736340316946,0.3608,95185.0,95181.0,0.006]
[1736340317253,0.052552,95177.0,95170.0,0.05413092]
[1736340317439,0.18870475,95175.0,95170.0,0.05413092]
[1736340317645,0.0845,95174.0,95170.0,0.05413092]
[1736340317854,0.0845,95174.0,95170.0,0.00157592]
[1736340318152,0.0845,95174.0,95172.0,0.052554]
[1736340319955,0.137053,95174.0,95172.0,0.002]
[1736340320158,0.137053,95174.0,95172.0,0.004]
[1736340320361,0.0749,95173.0,95172.0,0.004]
[1736340321743,0.26360475,95173.0,95172.0,0.004]
[1736340322945,0.0749,95173.0,95172.0,0.004]
[1736340323353,0.0749,95173.0,95172.0,0.002]
[1736340323567,0.0749,95173.0,95172.0,0.004]
[1736340325460,0.0749,95173.0,95161.0,0.52328]
[1736340325754,0.052562,95160.0,95151.0,0.052566]
[1736340326058,0.3608,95163.0,95151.0,0.052566]
[1736340326246,0.052562,95159.0,95151.0,0.052566]
[1736340326451,0.052566,95152.0,95144.0,0.052569]
[1736340326652,0.1563,95151.0,95144.0,0.052569]
[1736340327061,0.1563,95151.0,95145.0,0.052569]
[1736340327257,0.1563,95151.0,95146.0,0.052568]
[1736340327968,0.1563,95151.0,95150.0,0.00512735]
[1736340328666,0.2301,95151.0,95150.0,0.00512735]
[1736340328964,0.2301,95151.0,95140.0,0.052572]
[1736340329263,0.052569,95146.0,95140.0,0.052572]
[1736340329649,0.10602559,95150.0,95135.0,0.47084]
[1736340329853,0.052572,95141.0,95135.0,0.47084]
[1736340330163,7.689e-05,95140.0,95136.0,0.052574]
[1736340331157,7.689e-05,95140.0,95137.0,0.052573]
[1736340331564,0.00107689,95140.0,95137.0,0.052573]
[1736340331762,0.00107689,95140.0,95136.0,0.007]
[1736340331969,0.001,95140.0,95120.0,0.052583]
[1736340332160,0.052582,95122.0,95115.0,0.052585]
[1736340332359,0.15439413,95121.0,95115.0,0.052585]
[1736340332554,0.3608,95118.0,95115.0,0.052585]
[1736340332751,0.3608,95118.0,95117.0,0.052585]
[1736340333063,0.3608,95118.0,95110.0,0.47092]
[1736340333464,0.05270494,95117.0,95110.0,0.47092]
[1736340334166,0.00011994,95117.0,95110.0,0.47092]
[1736340334365,0.05270494,95117.0,95116.0,0.003]
[1736340334560,0.37765755,95118.0,95095.0,0.2206]
[1736340334765,0.3608,95106.0,95096.0,0.052596]
[1736340334962,0.0001003,95105.0,95096.0,0.052596]
[1736340335364,0.0001003,95105.0,95089.0,0.0526]
[1736340335365,0.052593,95102.0,95089.0,0.0526]
[1736340335567,0.052593,95102.0,95091.0,0.052599]
[1736340335762,0.052593,95102.0,95088.0,0.2206]
[1736340336762,0.0001003,95105.0,95088.0,0.2206]
[1736340336962,0.0001003,95105.0,95101.0,0.052593]
[1736340337167,0.052593,95103.0,95100.0,0.113]
[1736340337365,0.052594,95101.0,95100.0,0.113]
[1736340338169,0.052594,95101.0,95100.0,0.106]
[1736340338771,0.053594,95101.0,95100.0,0.112]
[1736340339160,0.053594,95101.0,95100.0,0.111]
[1736340339362,0.001,95101.0,95100.0,0.111]
[1736340339871,0.053594,95101.0,95100.0,0.106]
[1736340340059,0.414394,95101.0,95100.0,0.11]
[1736340340262,0.414394,95101.0,95087.0,0.00157737]
[1736340340464,0.3608,95088.0,95087.0,0.00157737]
[1736340340672,0.36088741,95088.0,95087.0,0.00157737]
[1736340340870,0.5123,95088.0,95087.0,0.00157737]
[1736340341174,0.5123,95088.0,95070.0,0.052611]
[1736340341175,0.052614,95065.0,95056.0,0.052619]
[1736340341368,9.595e-05,95064.0,95055.0,0.3608]
[1736340341766,9.595e-05,95064.0,95062.0,0.052615]
[1736340342566,9.595e-05,95064.0,95063.0,0.3608]
[1736340342766,0.3608,95076.0,95075.0,0.052608]
[1736340342962,0.10602559,95080.0,95063.0,0.4406]
[1736340343366,0.3608,95079.0,95063.0,0.4406]
[1736340343567,0.10602559,95073.0,95069.0,0.052611]
[1736340343880,0.052608,95076.0,95069.0,0.052611]
[1736340344066,0.052608,95076.0,95063.0,0.4406]
[1736340344067,0.052608,95076.0,95070.0,0.05261]
[1736340344767,0.001,95073.0,95070.0,0.05261]
[1736340345379,0.41341,95071.0,95070.0,0.001]
[1736340345870,0.3608,95071.0,95070.0,0.001]
[1736340346091,0.3608,95071.0,95070.0,0.005]
[1736340346973,0.10734559,95079.0,95070.0,0.3658]
[1736340347179,0.001,95073.0,95070.0,0.3658]
[1736340347481,0.001,95073.0,95070.0,0.418411]
[1736340347974,0.053609,95073.0,95070.0,0.3658]
[1736340348165,0.001,95071.0,95070.0,0.3658]
[1736340348774,0.12971,95072.0,95070.0,0.3648]
[1736340350487,0.05261,95072.0,95070.0,0.3648]
[1736340350782,0.001,95071.0,95070.0,0.3658]
[1736340350974,0.001,95071.0,95070.0,0.418411]
[1736340351174,0.001,95072.0,95070.0,0.418411]
[1736340351784,0.05361,95072.0,95070.0,0.3658]
[1736340352274,0.05361,95072.0,95070.0,0.3618]
[1736340352567,0.05361,95072.0,95070.0,0.3658]
[1736340354278,0.05261,95071.0,95070.0,0.005]
[1736340357078,0.06763026,95071.0,95070.0,0.005]
[1736340357383,0.06863026,95071.0,95070.0,0.007]
[1736340361286,0.052612,95068.0,95067.0,0.3608]
[1736340361686,0.052617,95059.0,95058.0,0.47168]
[1736340361983,0.05262,95054.0,95052.0,0.13028049]
[1736340362186,0.052624,95047.0,95046.0,0.05778837]
[1736340362379,0.052627,95040.0,95036.0,0.3608]
[1736340362782,0.052627,95040.0,95039.0,0.16950704]
[1736340363091,0.052631,95033.0,95016.0,0.3608]
[1736340363286,0.0751,95039.0,95023.0,0.37719729]
[1736340363486,0.052636,95024.0,95023.0,0.37719729]
[1736340364793,0.056636,95024.0,95023.0,0.37719729]
[1736340364996,0.056636,95024.0,95016.0,0.3608]
[1736340364997,0.05264,95017.0,95016.0,0.3608]
[1736340366796,0.05264,95017.0,95013.0,0.0006]
[1736340367000,0.052649,95001.0,95000.0,5.10056]
[1736340367295,0.052649,95001.0,95000.0,5.1]
[1736340368495,0.053649,95001.0,95000.0,5.1]
[1736340369994,0.06919129,95001.0,95000.0,5.1]
[1736340370590,0.06919129,95001.0,95000.0,5.103]
[1736340370794,0.01654229,95001.0,95000.0,5.103]
[1736340371396,0.001,95001.0,95000.0,5.103]
[1736340372798,0.052641,95016.0,95001.0,0.052649]
[1736340373101,0.12513368,95023.0,95000.0,5.103]
[1736340373102,0.12513368,95023.0,95015.0,0.3608]
[1736340373301,0.12513368,95023.0,95015.0,0.413441]
[1736340373601,0.052635,95027.0,95016.0,0.05264]
[1736340373899,0.052635,95027.0,95026.0,0.3608]
[1736340374095,0.06800314,95027.0,95026.0,0.3608]
[1736340375193,0.05263,95035.0,95026.0,0.413435]
[1736340375394,0.05263,95035.0,95034.0,0.3608]
[1736340376201,0.06803663,95035.0,95034.0,0.3608]
[1736340377606,0.07103663,95035.0,95034.0,0.3608]
[1736340377808,0.08003663,95035.0,95034.0,0.3608]
[1736340381207,0.02740663,95035.0,95034.0,0.3608]
[1736340381408,0.012,95035.0,95034.0,0.3608]
[1736340381604,0.012,95035.0,95034.0,0.413431]
[1736340381805,0.12513368,95039.0,95034.0,0.3608]
[1736340382012,0.1557528,95046.0,95045.0,0.052625]
[1736340382193,0.1557528,95046.0,95045.0,0.413425]
[1736340382399,0.0743,95069.0,95045.0,0.83248]
[1736340382696,0.0743,95069.0,95052.0,0.413421]
[1736340382893,0.0743,95069.0,95058.0,0.052617]
[1736340383098,0.0743,95069.0,95068.0,0.3608]
[1736340383798,0.06700475,95070.0,95068.0,0.3608]
[1736340383999,0.08245944,95070.0,95068.0,0.3608]
[1736340384405,0.002,95069.0,95068.0,0.3608]
[1736340384612,0.007,95069.0,95068.0,0.3618]
[1736340385203,0.002,95069.0,95068.0,0.3618]
[1736340386106,0.02145469,95070.0,95068.0,0.3618]
[1736340386395,0.07406569,95070.0,95068.0,0.3618]
[1736340386904,0.001,95069.0,95068.0,0.3608]
[1736340387113,0.007,95069.0,95068.0,0.3618]
[1736340387513,0.001,95069.0,95068.0,0.3608]
[1736340387714,0.001,95069.0,95068.0,0.3618]
[1736340388315,0.009,95069.0,95068.0,0.3618]
[1736340388918,0.007,95069.0,95068.0,0.3618]
[1736340389917,0.009,95069.0,95068.0,0.3618]
[1736340390617,0.01,95069.0,95068.0,0.3618]
[1736340390818,0.008,95069.0,95068.0,0.3618]
[1736340391020,0.01,95069.0,95068.0,0.3618]
[1736340396937,0.002,95069.0,95068.0,0.3608]
[1736340397126,0.011,95069.0,95068.0,0.3618]
[1736340397636,0.01,95069.0,95068.0,0.3618]
[1736340398330,0.011,95069.0,95068.0,0.3618]
[1736340399531,0.011,95069.0,95068.0,0.001]
[1736340399827,0.05262,95054.0,95052.0,0.3608]
[1736340400035,0.078,95053.0,95052.0,0.3608]
[1736340400841,0.052621,95052.0,95047.0,0.3608]
[1736340401038,0.052623,95049.0,95047.0,0.3608]
[1736340402934,0.0511632,95048.0,95047.0,0.3608]
[1736340403337,0.0511632,95048.0,95047.0,0.3618]
[1736340403944,0.0511632,95048.0,95047.0,0.3608]
[1736340404547,0.0561632,95048.0,95047.0,0.3608]
[1736340405137,0.0511632,95048.0,95047.0,0.3608]
[1736340405339,0.0571632,95048.0,95047.0,0.3618]
[1736340406546,0.24556956,95048.0,95047.0,0.3618]
[1736340406748,0.24556956,95048.0,95047.0,0.414423]
[1736340407536,0.1559,95073.0,95060.0,0.052616]
[1736340407737,0.0769,95073.0,95060.0,0.413416]
[1736340408146,0.2202885,95070.0,95069.0,0.052611]
[1736340408452,0.2202885,95070.0,95069.0,0.884931]
[1736340409351,0.2202885,95070.0,95069.0,1.184931]
[1736340409542,0.2039885,95070.0,95069.0,1.184931]
[1736340409746,0.07846001,95085.0,95079.0,0.052606]
[1736340410036,0.0769,95085.0,95079.0,0.413406]
[1736340410837,0.0769,95085.0,95073.0,0.052609]
[1736340411043,0.10602559,95083.0,95069.0,0.83332]
[1736340411248,0.152605,95080.0,95079.0,0.3608]
[1736340411536,0.152605,95080.0,95079.0,0.002]
[1736340411747,0.152605,95080.0,95079.0,0.3648]
[1736340412851,0.2211403,95080.0,95079.0,0.3648]
[1736340413047,0.05261,95071.0,95069.0,0.47452]
[1736340413954,0.052616,95060.0,95059.0,0.00157772]
[1736340414148,0.052616,95060.0,95042.0,0.3608]
[1736340414149,0.052619,95056.0,95045.0,0.052624]
[1736340414350,0.052619,95056.0,95042.0,0.3608]
[1736340414351,0.052621,95053.0,95042.0,0.3608]
[1736340414551,0.052621,95053.0,95046.0,0.052624]
[1736340414751,0.052621,95053.0,95042.0,0.3608]
[1736340414752,0.052617,95059.0,95048.0,0.052623]
[1736340415057,0.36232,95070.0,95057.0,0.052618]
[1736340415244,0.003,95060.0,95057.0,0.052618]
[1736340415943,0.003,95060.0,95059.0,0.052617]
[1736340417361,0.052613,95066.0,95059.0,0.052617]
[1736340417847,0.004,95060.0,95053.0,0.05262]
[1736340418257,0.005,95060.0,95053.0,0.05262]
[1736340418854,0.001,95060.0,95059.0,0.001]
[1736340419957,0.052615,95062.0,95059.0,0.001]
[1736340420252,0.006,95066.0,95059.0,0.001]
[1736340420453,0.052616,95061.0,95059.0,0.001]
[1736340420850,0.001,95060.0,95059.0,0.001]
[1736340421448,0.052617,95059.0,95051.0,0.3608]
[1736340421653,0.05262,95055.0,95051.0,0.3608]
[1736340423250,0.01455148,95055.0,95052.0,0.052621]
[1736340423558,0.004,95055.0,95053.0,0.05262]
[1736340424250,0.004,95055.0,95053.0,0.27322]
[1736340424251,0.005,95055.0,95053.0,0.27322]
[1736340425154,0.057619,95055.0,95053.0,0.27322]
[1736340425352,0.057619,95055.0,95046.0,0.3608]
[1736340425664,0.3608,95048.0,95025.0,0.61222407]
[1736340425845,0.05263,95035.0,95031.0,0.052632]
[1736340426052,0.052631,95034.0,95028.0,0.052634]
[1736340426254,0.052631,95034.0,95032.0,0.052631]
[1736340427756,0.052631,95034.0,95032.0,0.053631]
[1736340430164,0.052631,95034.0,95032.0,0.001]
[1736340430661,0.052631,95034.0,95016.0,0.3608]
[1736340430662,0.052634,95028.0,95016.0,0.3608]
[1736340430961,0.05264,95018.0,95016.0,0.3608]
[1736340432757,0.05964,95018.0,95016.0,0.3618]
[1736340432958,0.24811092,95018.0,95016.0,0.3618]
[1736340433159,0.19547092,95018.0,95016.0,0.3618]
[1736340433355,0.19547092,95018.0,95017.0,0.05264]
[1736340433961,0.007,95018.0,95017.0,0.05264]
[1736340434153,0.009,95018.0,95017.0,0.05264]
[1736340434352,0.002,95018.0,95017.0,0.05264]
[1736340434556,0.009,95018.0,95017.0,0.05264]
[1736340435161,0.005,95018.0,95017.0,0.05264]
[1736340436663,0.003,95018.0,95017.0,0.05264]
[1736340437250,0.0809,95018.0,95017.0,0.05264]
[1736340437655,0.0789,95018.0,95017.0,0.05264]
[1736340437863,0.0819,95018.0,95017.0,0.05264]
[1736340438453,0.05264,95017.0,95015.0,0.00010532]
[1736340439962,0.05664,95017.0,95015.0,0.00010532]
[1736340440553,0.05764,95017.0,95015.0,0.00010532]
[1736340441354,0.24611092,95017.0,95015.0,0.00010532]
[1736340442160,0.24111092,95017.0,95015.0,0.00010532]
[1736340442363,0.24811092,95017.0,95015.0,0.00110532]
[1736340442558,0.06264,95017.0,95015.0,0.00110532]
[1736340442757,0.05564,95017.0,95015.0,0.00010532]
[1736340442957,0.06464,95017.0,95015.0,0.00110532]
[1736340443559,0.012,95017.0,95015.0,0.00110532]
[1736340443765,0.052641,95016.0,95015.0,0.00110532]
[1736340445764,0.052641,95016.0,95015.0,0.00010532]
[1736340445967,0.064641,95016.0,95015.0,0.00110532]
[1736340449868,0.25258312,95016.0,95015.0,0.00110532]
[1736340451178,0.052649,95001.0,95000.0,5.1]
[1736340451764,0.413449,95001.0,95000.0,5.1]
[1736340452266,0.413449,95001.0,95000.0,5.0584]
[1736340452472,0.413449,95001.0,95000.0,2.50223832]
[1736340452769,0.415449,95001.0,95000.0,2.50223832]
[1736340453174,0.415449,95001.0,95000.0,2.49067369]
[1736340453566,0.415449,95001.0,95000.0,2.45525369]
[1736340453872,0.417449,95001.0,95000.0,2.41842369]
[1736340454066,0.717449,95001.0,95000.0,2.05094465]
[1736340454267,0.417449,95001.0,95000.0,1.50767215]
[1736340454568,0.48156835,95001.0,95000.0,1.49695215]